bitfinex-derivatives/quotes_ETHF0:USTF0_20250518
["timestamp","ask_amount","ask_price","bid_price","bid_amount"]
[1747609632549,3.2078,2444.6,2444.3,0.81776]
[1747609632856,0.81774,2444.5,2444.3,2.71]
[1747609633057,3.2078,2444.6,2444.3,2.71]
[1747609633256,0.81773,2444.5,2444.3,3.52777]
[1747609633766,1.3375,2444.7,2444.3,2.71]
[1747609633956,0.81773,2444.5,2444.3,3.52778]
[1747609634558,0.81776,2444.4,2444.3,0.54568]
[1747609634762,0.81818,2443.2,2442.6,4.35788785]
[1747609634962,0.8182,2443.1,2442.8,0.81828]
[1747609635154,12.85712,2443.6,2442.8,4.45]
[1747609635463,0.81818,2443.2,2442.9,0.81826]
[1747609635665,0.81823,2443.0,2442.9,6.45]
[1747609636656,1.3849,2443.1,2442.9,6.45]
[1747609636864,0.81823,2443.0,2442.9,6.45]
[1747609638259,3.43041,2443.1,2442.5,2.4918]
[1747609638463,0.81836,2442.6,2442.5,3.4878]
[1747609638654,0.81836,2442.6,2442.5,2.23]
[1747609639365,0.81835,2442.7,2442.5,2.23]
[1747609639565,1.3571,2442.9,2442.5,2.23]
[1747609639767,3.2078,2443.3,2442.6,0.81836]
[1747609640062,1.3571,2443.2,2442.7,11.64732]
[1747609640259,0.81826,2443.0,2442.8,1.2975]
[1747609640458,0.81826,2443.0,2442.8,4.7375]
[1747609640757,0.81826,2442.9,2442.8,4.7375]
[1747609640952,0.81825,2443.0,2442.8,4.7375]
[1747609641261,0.81816,2443.2,2443.0,0.81822]
[1747609641454,0.81816,2443.2,2443.0,5.60822]
[1747609641661,3.2078,2443.3,2443.0,4.79]
[1747609641952,0.8182,2443.1,2443.0,4.79]
[1747609642356,0.81833,2442.7,2442.6,12.1092]
[1747609642559,0.81831,2442.8,2442.6,18.81756]
[1747609642765,10.807,2443.2,2442.6,17.9992]
[1747609642961,0.81822,2443.1,2442.9,0.81826]
[1747609643262,0.81817,2443.2,2443.0,2.6913]
[1747609643469,0.81818,2443.2,2443.0,8.47951]
[1747609643666,0.8182,2443.1,2443.0,7.6613]
[1747609644266,0.8182,2443.1,2443.0,8.47953]
[1747609644667,0.81818,2443.2,2443.0,8.47953]
[1747609644970,0.8182,2443.1,2443.0,8.47953]
[1747609645171,0.81815,2443.3,2443.0,8.47953]
[1747609645370,0.81815,2443.3,2443.1,0.81819]
[1747609645669,0.81815,2443.3,2443.2,1.3742]
[1747609645971,2.26031,2443.4,2443.2,4.2542]
[1747609646171,0.81813,2443.3,2443.2,4.2542]
[1747609646368,1.3053,2444.0,2443.3,2.04533]
[1747609646571,3.2078,2444.2,2444.1,0.81786]
[1747609646870,0.81773,2444.5,2444.3,0.81776]
[1747609647062,0.81773,2444.5,2444.3,5.95776]
[1747609647264,0.81773,2444.5,2444.4,1.3241]
[1747609647664,1.3495,2444.7,2444.4,3.4241]
[1747609647860,0.8177,2444.6,2444.4,3.4241]
[1747609648065,0.8177,2444.6,2444.4,4.24185]
[1747609648359,0.81771,2444.6,2444.4,3.4241]
[1747609648564,1.3495,2444.7,2444.4,3.4241]
[1747609648761,0.81773,2444.5,2444.4,2.1]
[1747609649174,9.02553,2444.5,2444.4,2.1]
[1747609649375,9.02553,2444.5,2443.6,10.801]
[1747609649376,19.0078,2444.5,2443.6,10.801]
[1747609649671,0.81806,2443.5,2443.4,1.3995]
[1747609649868,0.81806,2443.5,2443.4,1.8895]
[1747609650062,0.8181,2443.4,2443.3,1.15008785]
[1747609650771,1.3172,2443.4,2443.3,1.15008785]
[1747609650959,1.3172,2443.4,2443.3,3.37008785]
[1747609651163,2.1353,2443.4,2443.3,1.15008785]
[1747609651358,2.1353,2443.4,2443.3,3.37008785]
[1747609651565,1.3172,2443.4,2443.3,4.76958785]
[1747609651873,3.2078,2443.7,2443.3,4.76958785]
[1747609652167,3.2078,2444.1,2443.4,3.2078]
[1747609652369,4.02569,2444.1,2443.8,0.81795]
[1747609652673,4.02569,2444.1,2443.9,1.3651]
[1747609652674,0.8179,2444.0,2443.9,1.3651]
[1747609652867,2.1397,2444.0,2443.9,3.5551]
[1747609653070,0.81804,2443.6,2443.3,3.34321]
[1747609653376,1.3218,2444.0,2443.5,0.81806]
[1747609653673,1.3218,2444.0,2443.6,2.18311]
[1747609653871,0.81796,2443.9,2443.6,4.27312]
[1747609654073,0.81797,2443.8,2443.6,3.4551]
[1747609654270,2.13977,2443.8,2443.6,3.4551]
[1747609654666,0.818,2443.7,2443.6,1.3651]
[1747609654872,1.3218,2443.7,2443.4,10.8]
[1747609655069,0.81806,2443.5,2443.4,14.9651]
[1747609655470,0.81806,2443.5,2443.4,2.8]
[1747609655669,0.8181,2443.4,2443.3,10.8]
[1747609655970,2.2487,2443.4,2443.3,14.82]
[1747609656170,3.2078,2443.8,2443.3,14.82]
[1747609656171,0.81798,2443.8,2443.5,0.81804]
[1747609656373,4.02569,2444.1,2443.6,1.43]
[1747609656583,4.02569,2444.1,2443.8,0.81795]
[1747609656878,4.02569,2444.1,2443.9,1.43]
[1747609657074,4.02569,2444.1,2443.9,1.5]
[1747609657379,1.3549605,2444.4,2443.9,1.5]
[1747609657573,1.3549605,2444.4,2444.2,0.81781]
[1747609657773,0.81776,2444.4,2444.3,1.43]
[1747609657974,0.81786,2444.1,2444.0,12.058]
[1747609658174,0.81786,2444.1,2444.0,17.638]
[1747609658479,1.4306,2444.3,2444.2,0.81783]
[1747609658677,2.24839,2444.3,2444.1,0.81784]
[1747609658973,2.24839,2444.3,2444.2,1.3159]
[1747609659179,2.24839,2444.3,2444.2,3.3959]
[1747609659667,2.24839,2444.3,2444.2,2.08]
[1747609659873,2.04458,2444.2,2443.8,1.3159]
[1747609660075,0.81796,2443.8,2443.7,10.8]
[1747609660268,0.81796,2443.8,2443.7,13.28]
[1747609660473,2.25426,2443.8,2443.7,13.28]
[1747609661276,1.4363,2443.8,2443.4,12.0659]
[1747609661479,0.81806,2443.5,2443.4,12.75]
[1747609661979,4.02586,2443.5,2443.4,1.95]
[1747609662178,5.45706,2443.5,2443.4,1.95]
[1747609662885,0.81813,2443.3,2443.2,10.8]
[1747609663080,0.81824,2443.0,2442.8,0.81829]
[1747609663276,0.81823,2443.0,2442.9,1.3349]
[1747609663484,0.81823,2443.0,2442.9,1.4449]
[1747609664185,0.81823,2443.0,2442.9,0.11]
[1747609664486,4.639,2443.3,2442.7,12.1349]
[1747609664787,0.81823,2443.0,2442.8,2.22789]
[1747609664981,5.45715,2443.3,2443.0,0.81822]
[1747609665186,15.421,2443.3,2442.8,1.4096]
[1747609665379,15.421,2443.3,2442.8,4.8296]
[1747609665683,4.02606,2442.9,2442.8,4.8296]
[1747609666284,4.02606,2442.9,2442.8,3.42]
[1747609669086,0.81839,2442.6,2442.4,0.81843]
[1747609669287,11.2658,2442.9,2442.2,2.17578]
[1747609669288,3.2078,2442.5,2442.2,2.17578]
[1747609669481,9.714,2442.8,2442.4,0.81843]
[1747609669681,9.714,2442.8,2442.7,0.81833]
[1747609669877,10.5323,2442.8,2442.7,0.1]
[1747609670083,11.935,2442.8,2442.7,1.4617]
[1747609670385,15.1428,2442.8,2442.7,1.4617]
[1747609670887,15.1428,2442.8,2442.7,0.1]
[1747609671690,14.3245,2442.8,2442.7,0.1]
[1747609671991,9.714,2442.8,2442.7,0.91833]
[1747609674590,0.81813,2443.3,2442.9,2.04566]
[1747609674787,1.3549605,2443.5,2443.1,2.04542]
[1747609674983,1.3549605,2443.5,2443.4,0.8181]
[1747609675181,1.3549605,2443.5,2443.4,14.8711]
[1747609675584,1.3549605,2443.5,2443.4,19.8711]
[1747609675788,1.69370063,2443.7,2443.6,0.81803]
[1747609675988,1.69370063,2443.7,2443.4,12.87273228]
[1747609675989,0.81803,2443.6,2443.5,1.4143]
[1747609676190,0.81803,2443.6,2443.5,3.4543]
[1747609676590,2.12463,2443.6,2443.5,3.4543]
[1747609677091,1.3066,2443.6,2443.5,3.4543]
[1747609677294,1.3066,2443.6,2443.3,11.58911]
[1747609677295,0.81807,2443.5,2443.3,10.803]
[1747609677479,1.336,2443.4,2443.3,2.0]
[1747609677683,1.336,2443.4,2443.3,3.4125]
[1747609678995,1.336,2443.4,2443.3,4.23063]
[1747609679195,4.56681747,2443.8,2443.7,0.818]
[1747609679588,4.56681747,2443.8,2443.6,0.81802]
[1747609679790,5.38479747,2443.8,2443.6,2.03]
[1747609680089,1.432,2443.7,2443.6,2.03]
[1747609680393,1.432,2443.7,2443.2,0.81815]
[1747609680592,1.432,2443.7,2443.2,4.9559]
[1747609680800,0.81806,2443.6,2443.3,0.81811]
[1747609681092,1.432,2443.5,2443.3,1.3859]
[1747609681296,5.92001747,2443.8,2443.3,1.3859]
[1747609681496,18.93199747,2443.8,2443.4,0.81808]
[1747609681795,6.81098,2443.8,2443.5,1.3559]
[1747609681993,6.81098,2443.8,2443.5,4.5259]
[1747609682299,0.81801,2443.7,2443.5,4.5259]
[1747609682596,2.25001,2443.7,2443.5,4.5259]
[1747609682797,0.81803,2443.6,2443.5,4.5259]
[1747609682997,2.21983,2443.6,2443.5,3.17]
[1747609683194,2.04532,2443.4,2442.6,10.765]
[1747609683391,0.81828,2442.9,2442.7,1.3997]
[1747609683597,4.0261,2442.8,2442.7,1.3997]
[1747609683899,0.81833,2442.7,2442.6,10.765]
[1747609684200,2.22013,2442.7,2442.6,0.09]
[1747609684400,0.81836,2442.6,2442.5,1.3997]
[1747609684602,1.4018,2442.6,2442.1,3.2078]
[1747609684803,0.81848,2442.3,2442.1,4.9975]
[1747609685703,2.22025,2442.4,2442.1,5.81602]
[1747609687808,1.4018,2442.4,2442.1,4.9975]
[1747609688004,3.2078,2442.5,2442.1,4.9975]
[1747609688302,4.0262,2442.5,2442.1,4.9975]
[1747609688493,3.2078,2442.5,2442.1,4.9975]
[1747609688697,14.77911,2442.8,2442.6,0.81836]
[1747609688899,14.77911,2442.8,2442.2,2.04625]
[1747609689099,0.81838,2442.6,2442.3,1.5005]
[1747609689404,1.5144,2442.7,2442.4,0.81842]
[1747609689707,0.81837,2442.6,2442.5,1.5005]
[1747609689896,0.81837,2442.6,2442.5,1.5305]
[1747609690398,0.81837,2442.6,2442.5,0.03]
[1747609691998,1.01981711,2442.8,2442.7,0.81833]
[1747609692200,1.01981711,2442.8,2442.7,6.80624551]
[1747609692407,1.69370063,2443.4,2442.8,2.04575]
[1747609692704,1.69370063,2443.4,2443.3,0.81813]
[1747609692705,5.6984879,2443.4,2443.3,0.81813]
[1747609692895,5.6984879,2443.4,2443.3,6.64813]
[1747609693498,5.6984879,2443.4,2443.3,8.25380967]
[1747609694096,5.6984879,2443.4,2443.3,8.2538065]
[1747609694301,5.6984879,2443.4,2443.3,11.3118065]
[1747609694504,4.00478727,2443.4,2443.3,11.3118065]
[1747609695315,4.00478727,2443.4,2443.3,16.3118065]
[1747609695511,4.00478727,2443.4,2443.3,11.3118065]
[1747609695912,4.00478727,2443.4,2443.3,11.31180182]
[1747609696111,7.30424125,2444.1,2443.7,0.81798]
[1747609696311,0.81795,2443.9,2443.8,1.3931]
[1747609696514,7.30424125,2444.1,2444.0,0.81789]
[1747609696715,2.51156063,2444.1,2444.0,0.58]
[1747609696915,0.81793,2443.9,2443.8,1.3931]
[1747609697107,0.81793,2443.9,2443.8,1.4431]
[1747609697313,2.31612,2444.0,2443.8,1.4431]
[1747609697509,2.51158063,2444.1,2443.8,1.4431]
[1747609697716,1.69370063,2444.1,2443.8,1.4431]
[1747609697915,2.51159063,2444.1,2443.8,2.26104]
[1747609698620,1.69370063,2444.1,2443.8,1.4431]
[1747609698814,0.81793,2443.9,2443.8,1.4431]
[1747609699018,0.81793,2443.9,2443.5,12.1809]
[1747609699019,0.81803,2443.6,2443.5,12.1799]
[1747609699217,0.81803,2443.6,2443.5,10.816]
[1747609699419,0.81803,2443.6,2443.5,0.05]
[1747609700225,0.81801,2443.7,2443.5,0.05]
[1747609700518,3.2078,2443.8,2443.7,0.818]
[1747609700718,3.2078,2443.8,2443.7,6.388]
[1747609701621,4.02566,2444.1,2443.8,0.81793]
[1747609701820,3.2078,2444.1,2443.9,2.32931]
[1747609702125,3.2078,2444.1,2443.9,1.5114]
[1747609702319,3.2078,2444.1,2443.2,3.2078]
[1747609702522,1.4959,2444.0,2443.6,1.5114]
[1747609702722,2.3138,2444.0,2443.8,0.81795]
[1747609703023,1.4959,2444.0,2443.9,1.5114]
[1747609703226,1.4959,2444.0,2443.5,0.81805]
[1747609703417,0.81794,2443.9,2443.6,0.818]
[1747609703720,3.2078,2444.1,2443.6,12.4064]
[1747609704225,3.2078,2444.1,2443.9,0.81792]
[1747609704524,3.2078,2444.1,2444.0,1.5323]
[1747609704525,4.02566,2444.1,2444.0,1.5323]
[1747609704718,5.46896,2444.1,2444.0,1.5323]
[1747609705121,6.69577,2444.1,2443.6,10.765]
[1747609705320,6.69577,2444.1,2443.6,12.975]
[1747609705528,4.02579,2443.7,2443.6,2.21]
[1747609705729,0.8181,2443.4,2443.1,12.2442]
[1747609706026,4.0259,2443.4,2443.3,2.9534]
[1747609706228,4.0259,2443.4,2443.3,3.6523]
[1747609706724,4.0259,2443.4,2442.8,41.261]
[1747609706725,3.2078,2443.4,2442.8,41.261]
[1747609706922,1.4433,2443.6,2442.9,3.1824974]
[1747609707123,0.81811,2443.4,2443.2,0.81815]
[1747609707325,0.81811,2443.4,2443.3,1.432]
[1747609707525,1.4433,2443.6,2443.4,0.8181]
[1747609707732,0.81806,2443.5,2443.4,2.05]
[1747609707918,1.4433,2443.6,2443.3,1.432]
[1747609708223,3.2078,2443.7,2443.3,3.492]
[1747609708423,1.4951,2443.9,2443.3,3.492]
[1747609708424,2.21663,2443.9,2443.3,16.30226]
[1747609708619,2.21663,2443.9,2443.4,1.4545]
[1747609708822,2.21664,2443.9,2443.7,0.81798]
[1747609709025,2.21664,2443.9,2443.8,1.432]
[1747609709225,0.81796,2443.8,2443.6,1.432]
[1747609709427,5.25287,2443.7,2443.2,10.72]
[1747609709628,1.3987,2443.6,2443.2,12.97]
[1747609709828,0.81813,2443.3,2443.2,12.97]
[1747609710127,1.3987,2443.6,2443.2,12.97]
[1747609710128,0.81811,2443.4,2443.2,13.78816]
[1747609710328,2.21675,2443.6,2443.3,0.81813]
[1747609710528,0.81807,2443.5,2443.3,7.89923]
[1747609710825,0.81807,2443.5,2443.3,2.27923]
[1747609711133,0.81813,2443.3,2443.2,10.72]
[1747609711321,2.04538,2443.3,2442.9,1.4534]
[1747609711523,0.81833,2442.7,2442.6,12.1811]
[1747609711820,4.02613,2442.7,2442.6,12.27]
[1747609712221,0.81843,2442.4,2442.3,1.4611]
[1747609712421,1.5193,2442.6,2442.1,2.9336]
[1747609712618,0.81853,2442.1,2442.0,10.72]
[1747609712820,0.81856,2442.0,2441.9,1.15008785]
[1747609713434,2.25716,2442.0,2441.9,1.15008785]
[1747609714235,5.31516,2442.0,2441.9,1.15008785]
[1747609716227,9.4966,2442.0,2441.6,2.3079314]
[1747609716526,4.02647,2441.7,2441.6,2.3079314]
[1747609716927,4.02647,2441.7,2441.2,12.95532]
[1747609716928,3.2078,2441.7,2441.2,12.95532]
[1747609717230,1.4145,2441.6,2441.3,1.4155]
[1747609717531,0.8188,2441.3,2441.2,10.721]
[1747609717730,0.81896,2440.9,2440.5,0.81905]
[1747609717928,0.81893,2441.0,2440.6,0.08194706]
[1747609718128,2.23344,2440.9,2440.7,1.4155]
[1747609718435,1.4145,2440.9,2440.8,0.08194034]
[1747609718636,1.4145,2440.9,2440.8,5.65194034]
[1747609718834,1.4145,2440.9,2440.8,1.49744034]
[1747609719031,3.2078,2441.1,2441.0,0.8189]
[1747609719331,3.2078,2441.9,2441.1,2.04712]
[1747609719536,2.26808,2441.7,2441.4,0.81875]
[1747609719835,2.26809,2441.7,2441.5,1.4925]
[1747609720036,2.26809,2441.7,2441.5,7.1625]
[1747609720635,3.2078,2441.9,2441.6,0.81867]
[1747609720826,3.2078,2441.9,2441.7,2.31116]
[1747609721028,4.0264,2441.9,2441.8,1.4925]
[1747609721229,4.0264,2441.9,2441.8,7.7525]
[1747609721526,3.2078,2441.9,2441.8,7.7525]
[1747609721728,1.4494,2442.1,2441.8,7.7525]
[1747609721937,0.81858,2442.0,2441.8,7.7525]
[1747609722533,2.26794,2442.1,2441.9,0.81859]
[1747609722732,2.26794,2442.1,2442.0,1.4657]
[1747609722930,2.26794,2442.1,2442.0,7.2957]
[1747609723338,1.4494,2442.1,2442.0,7.2957]
[1747609723539,1.4494,2442.1,2442.0,1.4657]
[1747609724038,1.4494,2442.1,2442.0,3.7857]
[1747609724337,0.81858,2442.0,2441.7,11.54464]
[1747609724636,0.81857,2442.0,2441.7,19.28035]
[1747609724934,1.4714,2441.9,2441.7,18.4617]
[1747609725238,1.4714,2441.9,2441.8,2.28433]
[1747609725430,1.4714,2441.9,2441.8,8.52433]
[1747609725633,3.2078,2442.3,2442.1,0.81852]
[1747609725934,4.6085,2442.3,2442.1,0.81852]
[1747609726134,4.6085,2442.3,2442.2,1.4316]
[1747609726336,4.6085,2442.3,2442.2,7.8516]
[1747609726535,5.42696,2442.3,2442.2,1.4316]
[1747609726735,5.42698,2442.3,2441.7,10.726]
[1747609726933,5.42698,2442.3,2442.0,0.81855]
[1747609727134,5.42698,2442.3,2442.1,1.4316]
[1747609727337,5.42698,2442.3,2442.1,7.4516]
[1747609727543,3.2078,2442.3,2442.2,0.8185]
[1747609727742,4.6085,2442.7,2442.2,7.33622]
[1747609727941,9.714,2442.8,2442.6,0.81836]
[1747609728139,13.9028,2443.0,2442.6,5.52]
[1747609728340,3.2078,2443.0,2442.8,0.81828]
[1747609728647,0.81826,2442.9,2442.8,0.04]
[1747609728941,2.24916,2442.9,2442.8,0.04]
[1747609729336,0.81843,2442.4,2442.3,1.4891]
[1747609729541,0.81842,2442.5,2442.3,3.6091]
[1747609729840,2.24924,2442.7,2442.4,1.4232]
[1747609730040,10.691,2442.8,2442.4,7.9532]
[1747609730240,3.2078,2442.9,2442.7,0.81833]
[1747609730538,4.02606,2442.9,2442.8,1.4232]
[1747609730738,4.02606,2442.9,2442.8,7.8132]
[1747609730939,4.02606,2442.9,2442.8,1.4232]
[1747609731442,3.2078,2442.9,2442.3,1.4891]
[1747609731643,1.5019,2442.8,2442.4,1.4122]
[1747609731845,0.81834,2442.7,2442.5,0.81838]
[1747609732144,1.5019,2442.8,2442.6,1.4122]
[1747609732347,2.32023,2442.8,2442.6,6.9722]
[1747609732934,0.81833,2442.7,2442.6,6.9722]
[1747609733340,2.32022,2442.8,2442.6,6.9722]
[1747609734040,1.5019,2442.8,2442.6,6.9722]
[1747609734243,0.81833,2442.7,2442.6,6.9722]
[1747609734648,0.81833,2442.7,2442.6,5.56]
[1747609734851,0.8184,2442.5,2442.4,1.4034]
[1747609735044,0.8184,2442.5,2442.4,7.7634]
[1747609735243,2.25799,2442.6,2442.4,7.7634]
[1747609735449,0.8184,2442.5,2442.4,7.7634]
[1747609735649,20.394,2442.7,2442.4,7.7634]
[1747609735842,0.8184,2442.5,2442.4,6.36]
[1747609736653,4.0262,2442.5,2442.4,6.36]
[1747609736843,2.04617,2442.3,2441.8,1.4886]
[1747609737041,3.2078,2442.1,2441.8,1.6186]
[1747609737346,3.2078,2442.1,2441.8,3.022]
[1747609737347,0.8186,2441.9,2441.8,3.022]
[1747609738157,0.81851,2442.2,2441.9,0.81858]
[1747609738448,2.32845,2442.4,2442.0,1.4351]
[1747609738637,1.51,2442.4,2442.0,7.3051]
[1747609738841,3.2078,2443.1,2442.4,2.04601]
[1747609739042,0.81829,2442.9,2442.6,0.81835]
[1747609739241,4.7178,2443.1,2442.7,1.4351]
[1747609739442,0.81829,2442.9,2442.7,7.8551]
[1747609739647,0.81826,2442.9,2442.8,1.4351]
[1747609739953,2.04575,2442.8,2441.9,10.672]
[1747609740249,0.81848,2442.3,2442.0,2.25364]
[1747609740451,0.81848,2442.3,2442.0,7.56364]
[1747609740748,0.81848,2442.3,2442.0,6.7451]
[1747609740749,0.81853,2442.1,2442.0,6.7451]
[1747609741051,3.2078,2442.3,2442.0,6.7451]
[1747609741253,0.81848,2442.3,2442.0,7.56365]
[1747609741656,11.48746,2442.4,2442.0,6.7451]
[1747609741948,1.5112,2442.5,2442.0,6.7451]
[1747609742246,3.2078,2442.9,2442.3,2.04617]
[1747609742553,4.02609,2442.9,2442.7,0.81833]
[1747609742848,3.2078,2442.9,2442.7,5.98]
[1747609743050,3.2078,2442.9,2442.8,2.3401]
[1747609743261,4.02606,2442.9,2442.8,3.9018]
[1747609744152,4.02606,2442.9,2442.8,1.5218]
[1747609744445,1.3608666,2443.5,2443.3,0.8181]
[1747609744650,1.3608666,2443.5,2443.4,1.4827]
[1747609744849,2.1789266,2443.5,2443.4,1.4827]
[1747609745153,1.3608666,2443.5,2443.4,4.4008]
[1747609745349,1.3608666,2443.5,2443.4,3.5827]
[1747609745653,0.81818,2443.2,2443.1,10.672]
[1747609745854,0.81815,2443.3,2443.1,5.58]
[1747609746051,0.81815,2443.3,2443.2,1.4827]
[1747609746246,0.81815,2443.3,2443.2,3.5227]
[1747609746654,1.3608666,2443.5,2443.2,3.5227]
[1747609746855,0.81812,2443.4,2443.3,1.4225]
[1747609747158,0.81812,2443.4,2443.3,3.7825]
[1747609747351,1.3608666,2443.5,2443.0,1.4977]
[1747609747352,2.8330666,2443.5,2443.0,1.4977]
[1747609747550,0.8182,2443.1,2443.0,7.2477]
[1747609747855,3.2078,2443.2,2442.5,2.31028]
[1747609748050,0.81829,2442.9,2442.8,1.4225]
[1747609748352,0.81829,2442.9,2442.8,2.01]
[1747609748549,0.81826,2442.9,2442.8,2.38]
[1747609748751,3.2078,2443.2,2442.8,2.38]
[1747609749053,4.02588,2443.5,2442.9,13.71910221]
[1747609749355,4.68,2443.5,2442.9,10.1721]
[1747609749547,0.81818,2443.2,2442.9,21.66134]
[1747609749947,3.2078,2443.2,2442.9,8.6802]
[1747609750145,3.2078,2443.5,2442.9,8.6802]
[1747609750349,4.6728,2443.5,2442.9,9.49844]
[1747609750548,0.81817,2443.2,2442.9,9.49844]
[1747609750757,4.6728,2443.5,2442.9,8.6802]
[1747609750949,0.81823,2443.0,2442.9,8.6802]
[1747609751147,0.81836,2442.6,2442.5,3.2078]
[1747609751348,0.81836,2442.6,2441.6,2.04674]
[1747609751349,3.2078,2442.8,2442.3,1.4951]
[1747609751549,1.465,2442.5,2442.3,2.03]
[1747609751760,0.8185,2442.2,2442.1,1.4305]
[1747609751953,0.8185,2442.2,2442.1,1.63844951]
[1747609752150,0.81858,2442.0,2441.7,10.671]
[1747609752458,3.2078,2442.4,2441.7,10.671]
[1747609752459,0.81863,2441.8,2441.7,5.56]
[1747609752658,4.6728,2441.9,2441.7,5.56]
[1747609752957,0.81863,2441.8,2441.7,5.56]
[1747609753255,2.28362,2441.9,2441.7,5.56]
[1747609753456,3.2078,2442.2,2441.8,1.433]
[1747609753648,11.46358,2442.0,2441.8,3.653]
[1747609753848,1.531,2442.1,2441.8,1.433]
[1747609754057,1.531,2442.1,2441.8,3.793]
[1747609754256,0.81857,2442.0,2441.8,3.793]
[1747609755357,14.66831,2442.2,2441.8,3.793]
[1747609755557,3.2078,2442.2,2441.8,3.793]
[1747609755858,1.531,2442.3,2441.9,0.81858]
[1747609756161,0.8185,2442.2,2442.0,1.5273]
[1747609756359,0.8185,2442.2,2442.0,7.9773]
[1747609756553,3.2078,2442.6,2442.0,7.9773]
[1747609756764,1.02009837,2442.2,2442.1,3.88087526]
[1747609756958,1.3608666,2442.5,2442.4,0.81843]
[1747609757155,1.69370063,2442.8,2442.7,0.81833]
[1747609757462,1.69370063,2442.8,2442.7,11.81826025]
[1747609758361,4.0259,2443.4,2443.2,0.81815]
[1747609758554,4.0259,2443.4,2443.3,1.5273]
[1747609758757,4.0259,2443.4,2443.3,3.7073]
[1747609758958,4.0259,2443.4,2443.3,1.5273]
[1747609759162,4.0259,2443.4,2443.3,3.6373]
[1747609759461,4.0259,2443.4,2443.3,3.5173]
[1747609760361,4.0259,2443.4,2443.3,3.7073]
[1747609760559,3.2078,2443.4,2443.3,3.7073]
[1747609760754,4.0259,2443.4,2443.3,1.5273]
[1747609760956,0.8182,2443.1,2443.0,1.4319]
[1747609761163,0.8182,2443.1,2443.0,3.5619]
[1747609762061,1.5448,2443.3,2443.0,3.5619]
[1747609762261,2.36294,2443.3,2443.0,3.5619]
[1747609762765,1.5448,2443.3,2443.0,3.5619]
[1747609762968,1.5448,2443.3,2443.1,1.4793]
[1747609763264,1.5448,2443.3,2443.1,6.8493]
[1747609763466,1.5448,2443.3,2443.1,7.66748]
[1747609763862,1.5448,2443.3,2443.1,6.8493]
[1747609764166,1.5448,2443.3,2443.1,7.6675]
[1747609764362,1.5448,2443.3,2443.1,6.8493]
[1747609764660,9.714,2443.2,2442.4,10.67]
[1747609764960,0.81846,2442.3,2442.2,1.4793]
[1747609765166,0.81846,2442.3,2442.2,5.58]
[1747609765460,0.81846,2442.3,2442.0,3.78346]
[1747609765774,4.02633,2442.1,2442.0,0.09]
[1747609766063,3.2078,2442.1,2442.0,0.09]
[1747609766661,4.02633,2442.1,2442.0,0.09]
[1747609766869,0.81863,2441.9,2441.5,10.67]
[1747609767065,4.02643,2441.8,2441.7,1.5137]
[1747609767368,4.02643,2441.8,2441.7,7.5837]
[1747609768062,3.2078,2441.8,2441.7,7.5837]
[1747609768267,3.2078,2442.7,2441.7,23.2017]
[1747609768459,3.2078,2443.1,2442.1,3.2078]
[1747609768660,0.81835,2442.7,2442.3,0.81845]
[1747609768955,1.3984,2443.1,2442.4,1.4306]
[1747609768956,4.6062,2443.1,2442.4,1.4306]
[1747609769161,4.6062,2443.1,2442.4,11.90641499]
[1747609769361,4.6062,2443.1,2442.5,0.12792238]
[1747609769561,3.2078,2443.1,2442.6,1.4306]
[1747609769762,3.2078,2443.1,2442.9,0.81825]
[1747609770063,3.2078,2443.1,2443.0,1.4306]
[1747609770262,3.2078,2443.1,2443.0,7.4906]
[1747609770466,4.026,2443.1,2443.0,7.4906]
[1747609770663,4.026,2443.1,2443.0,6.06]
[1747609771363,3.2078,2443.1,2443.0,6.87823]
[1747609771561,3.2078,2443.7,2443.4,0.81808]
[1747609771758,4.02581,2443.7,2443.5,1.4405]
[1747609771961,0.81803,2443.6,2443.5,3.7505]
[1747609772364,4.02581,2443.7,2443.5,3.7505]
[1747609772570,0.81803,2443.6,2443.5,1.4405]
[1747609772775,0.81803,2443.6,2443.5,3.5005]
[1747609773366,12.0277,2443.9,2443.5,3.5005]
[1747609773568,0.81801,2443.7,2443.5,3.5005]
[1747609773870,1.4197,2443.9,2443.5,3.5005]
[1747609774069,0.81795,2443.9,2443.6,0.81801]
[1747609774271,0.81796,2443.8,2443.7,1.4784]
[1747609774468,0.81796,2443.8,2443.7,3.8184]
[1747609775069,14.91797074,2444.0,2443.7,3.8184]
[1747609775070,5.20397074,2444.0,2443.7,3.8184]
[1747609775264,1.99617074,2444.0,2443.9,0.81793]
[1747609775571,1.99617074,2444.0,2443.9,1.20793]
[1747609775871,5.53666586,2444.3,2444.2,0.81783]
[1747609776074,2.31495025,2444.7,2444.3,0.81777]
[1747609776369,0.81773,2444.6,2444.4,1.4784]
[1747609776560,0.81773,2444.5,2444.4,1.9284]
[1747609777165,8.78357517,2444.8,2444.4,1.9284]
[1747609777166,4.06137517,2444.8,2444.4,1.9284]
[1747609777467,0.81766,2444.7,2444.5,0.81771]
[1747609777672,0.81766,2444.7,2444.6,1.4507]
[1747609777873,0.81766,2444.7,2444.6,7.6307]
[1747609778272,0.81766,2444.7,2444.6,6.18]
[1747609778473,1.4935,2444.8,2444.3,12.0637]
[1747609778770,5.24868987,2444.9,2444.4,3.2078]